fUST/lending_fUST_20260101
["ID","MTS","AMOUNT","RATE_DAILY","PERIOD"]
[400253517,1767225040964,-496.47127164,0.00021637,2]
[400253518,1767225040974,-250.0,0.00021637,2]
[400253519,1767225040983,-250.0,0.00021637,2]
[400253520,1767225040992,-151.0,0.00021637,2]
[400253521,1767225041001,-250.0,0.00021637,2]
[400253522,1767225041010,-151.0,0.00021637,2]
[400253523,1767225041019,-250.0,0.00021637,2]
[400253524,1767225041029,-151.0,0.00021637,2]
[400253525,1767225041038,-250.0,0.00021637,2]
[400253526,1767225041048,-151.0,0.00021637,2]
[400253527,1767225041057,-250.0,0.00021637,2]
[400253528,1767225041066,-151.0,0.00021637,2]
[400253529,1767225041075,-250.0,0.00021637,2]
[400253530,1767225041085,-151.0,0.00021637,2]
[400253531,1767225041094,-250.0,0.00021637,2]
[400253532,1767225041103,-151.0,0.00021637,2]
[400253533,1767225041112,-250.0,0.00021637,2]
[400253534,1767225041122,-151.0,0.00021637,2]
[400253535,1767225041131,-250.0,0.00021637,2]
[400253536,1767225041140,-151.0,0.00021637,2]
[400253537,1767225041149,-250.0,0.00021637,2]
[400253538,1767225041159,-151.0,0.00021637,2]
[400253539,1767225041168,-250.0,0.00021637,2]
[400253540,1767225041177,-151.0,0.00021637,2]
[400253541,1767225041186,-151.0,0.00021637,2]
[400253542,1767225041195,-196.9088468,0.00021637,2]
[400253543,1767225041205,-2398.4119403,0.00021637,2]
[400253544,1767225041213,-151.0,0.0002165,2]
[400253545,1767225041223,-151.0,0.0002165,2]
[400253546,1767225041232,-392.70996123,0.00021917,2]
[400253547,1767225041242,-500.0,0.00021917,2]
[400253548,1767225041251,-490.82839717,0.00021917,2]
[400253549,1767225041260,-500.0,0.00021917,2]
[400253550,1767225041269,-500.0,0.00021917,2]
[400253551,1767225041278,-500.0,0.00021917,2]
[400253552,1767225041287,-513.83,0.00021917,2]
[400253553,1767225041297,-500.0,0.00021917,2]
[400253554,1767225041306,-2369.62,0.00021917,2]
[400253555,1767225041315,-500.0,0.00021917,2]
[400253556,1767225041324,-3072.88,0.00021917,2]
[400253557,1767225041334,-500.0,0.00021917,2]
[400253558,1767225041343,-500.0,0.00021917,2]
[400253559,1767225041352,-500.0,0.00021917,2]
[400253560,1767225041361,-500.0,0.00021917,2]
[400253561,1767225041371,-500.0,0.00021917,2]
[400253562,1767225041380,-500.0,0.00021917,2]
[400253563,1767225041390,-500.0,0.00021917,2]
[400253564,1767225041400,-500.0,0.00021917,2]
[400253565,1767225041409,-500.0,0.00021917,2]
[400253566,1767225041419,-500.0,0.00021917,2]
[400253567,1767225041428,-557.81,0.00021917,2]
[400253568,1767225041437,-500.0,0.00021917,2]
[400253569,1767225041446,-924.08865171,0.00021917,2]
[400253570,1767225041455,-893.43,0.00021917,2]
[400253571,1767225041465,-208.85,0.00022,7]
[400253572,1767225041475,-500.0,0.00022,2]
[400253573,1767225041484,-500.0,0.00022,2]
[400253574,1767225041493,-603.09510429,0.00022,2]
[400253575,1767225041502,-500.0,0.00022,2]
[400253576,1767225041512,-500.0,0.00022,10]
[400253577,1767225041521,-514.84070869,0.00022185,2]
[400253578,1767225041531,-2487.15318209,0.00022185,2]
[400253579,1767225041541,-392.70996123,0.00022191,2]
[400253580,1767225041551,-500.0,0.00022191,2]
[400253581,1767225041560,-500.0,0.00022191,2]
[400253582,1767225041570,-500.0,0.00022191,2]
[400253583,1767225041579,-500.0,0.00022191,2]
[400253584,1767225041589,-513.83,0.00022191,2]
[400253585,1767225041599,-500.0,0.00022191,2]
[400253586,1767225041608,-2369.62,0.00022191,2]
[400253587,1767225041617,-500.0,0.00022191,2]
[400253588,1767225041627,-3072.88,0.00022191,2]
[400253589,1767225041636,-500.0,0.00022191,2]
[400253590,1767225041646,-500.0,0.00022191,2]
[400253591,1767225041655,-500.0,0.00022191,2]
[400253592,1767225041664,-500.0,0.00022191,2]
[400253593,1767225041673,-500.0,0.00022191,2]
[400253594,1767225041683,-500.0,0.00022191,2]
[400253595,1767225041692,-500.0,0.00022191,2]
[400253596,1767225041702,-500.0,0.00022191,2]
[400253597,1767225041711,-500.0,0.00022191,2]
[400253598,1767225041720,-557.81,0.00022191,2]
[400253599,1767225041730,-500.0,0.00022191,2]
[400253600,1767225041739,-893.43,0.00022191,2]
[400253601,1767225041749,-1350.47,0.00022287,2]
[400253602,1767225041758,-202.53544915,0.00022329,7]
[400253603,1767225041768,-392.70996123,0.00022465,2]
[400253604,1767225041777,-500.0,0.00022465,2]
[400253605,1767225041787,-500.0,0.00022465,2]
[400253606,1767225041796,-500.0,0.00022465,2]
[400253607,1767225041806,-500.0,0.00022465,2]
[400253608,1767225041815,-513.83,0.00022465,2]
[400253609,1767225041824,-500.0,0.00022465,2]
[400253610,1767225041833,-2369.62,0.00022465,2]
[400253611,1767225041843,-500.0,0.00022465,2]
[400253612,1767225041852,-3072.88,0.00022465,2]
[400253613,1767225041861,-500.0,0.00022465,2]
[400253614,1767225041870,-500.0,0.00022465,2]
[400253615,1767225041883,-500.0,0.00022465,2]
[400253616,1767225041892,-500.0,0.00022465,2]
[400253617,1767225041901,-500.0,0.00022465,2]
[400253618,1767225041911,-542.49451985,0.00022465,2]
[400253619,1767225041921,-500.0,0.00022465,2]
[400253620,1767225041930,-500.0,0.00022465,2]
[400253621,1767225041940,-500.0,0.00022465,2]
[400253622,1767225041949,-557.81,0.00022465,2]
[400253623,1767225041959,-500.0,0.00022465,2]
[400253624,1767225041968,-151.0,0.00022465,2]
[400253625,1767225041977,-893.43,0.00022465,2]
[400253626,1767225041986,-10692.68,0.000226,2]
[400253627,1767225041996,-151.0,0.000226,2]
[400253628,1767225042005,-151.0,0.000226,2]
[400253629,1767225042014,-151.0,0.000226,2]
[400253630,1767225042024,-151.0,0.000226,2]
[400253631,1767225042033,-289.342021,0.000226,2]
[400253632,1767225042043,-169.466222,0.000226,2]
[400253633,1767225042052,-169.466222,0.000226,2]
[400253634,1767225042061,-169.466222,0.000226,2]
[400253635,1767225042070,-169.466222,0.000226,2]
[400253636,1767225042079,-550.492601,0.000226,2]
[400253637,1767225042088,-550.492601,0.000226,2]
[400253638,1767225042098,-550.492601,0.000226,2]
[400253639,1767225042107,-550.492601,0.000226,2]
[400253640,1767225042116,-612.575308,0.000226,2]
[400253641,1767225042125,-612.575308,0.000226,2]
[400253642,1767225042135,-612.575308,0.000226,2]
[400253643,1767225042144,-612.575308,0.000226,2]
[400253644,1767225042153,-171.760476,0.000226,2]
[400253645,1767225042163,-533.88981491,0.00022733,2]
[400253646,1767225042172,-2579.17784983,0.00022733,2]
[400253647,1767225042181,-392.70996123,0.00022739,2]
[400253648,1767225042191,-500.0,0.00022739,2]
[400253649,1767225042201,-500.0,0.00022739,2]
[400253650,1767225042210,-500.0,0.00022739,2]
[400253651,1767225042219,-500.0,0.00022739,2]
[400253652,1767225042229,-513.83,0.00022739,2]
[400253653,1767225042238,-500.0,0.00022739,2]
[400253654,1767225042247,-2369.62,0.00022739,2]
[400253655,1767225042257,-500.0,0.00022739,2]
[400253656,1767225042267,-3072.88,0.00022739,2]
[400253657,1767225042276,-500.0,0.00022739,2]
[400253658,1767225042286,-500.0,0.00022739,2]
[400253659,1767225042296,-500.0,0.00022739,2]
[400253660,1767225042305,-500.0,0.00022739,2]
[400253661,1767225042315,-500.0,0.00022739,2]
[400253662,1767225042324,-500.0,0.00022739,2]
[400253663,1767225042334,-500.0,0.00022739,2]
[400253664,1767225042344,-500.0,0.00022739,2]
[400253665,1767225042354,-557.81,0.00022739,2]
[400253666,1767225042363,-893.43,0.00022739,2]
[400253667,1767225042373,-431954.00207962,0.0002277,2]
[400253668,1767225043094,-340.15219905,0.00021917,2]
[400253684,1767225052436,-1410.50245358,0.00011442,2]
[400253691,1767225461675,5000.0,0.00010954,2]
[400253692,1767225484500,5000.0,0.00010954,2]
[400253693,1767225507393,5000.0,0.00010954,2]
[400253694,1767225530649,5000.0,0.00010954,2]
[400253695,1767225553444,5000.0,0.00010954,2]
[400253696,1767225576215,5000.0,0.00010954,2]
[400253697,1767225599439,5000.0,0.00010954,2]
[400253698,1767225622570,5000.0,0.00010954,2]
[400253699,1767225646030,5000.0,0.00010954,2]
[400253701,1767225669208,5000.0,0.00010954,2]
[400253703,1767225691830,5000.0,0.00010954,2]
[400253704,1767225715600,5000.0,0.00010954,2]
[400253705,1767225738637,5000.0,0.00010954,2]
[400253706,1767225741570,469.2200309,0.00010366,2]
[400253707,1767225761708,5000.0,0.00010954,2]
[400253708,1767225784490,5000.0,0.00010954,2]
[400253710,1767225807375,5000.0,0.00010954,2]
[400253711,1767225830220,5000.0,0.00010954,2]
[400253712,1767225853861,5000.0,0.00010954,2]
[400253713,1767225876938,5000.0,0.00010954,2]
[400253714,1767225900792,5000.0,0.00010954,2]
[400253715,1767225924167,5000.0,0.00010954,2]
[400253716,1767225947583,5000.0,0.00010954,2]
[400253718,1767225971170,5000.0,0.00010954,2]
[400253720,1767225993770,5000.0,0.00010954,2]
[400253721,1767226016706,5000.0,0.00010954,2]
[400253722,1767226025127,-999.0,0.00010959,2]
[400253723,1767226025148,-684.7229129,0.00010959,2]
[400253724,1767226025168,-150.0,0.00010959,2]
[400253725,1767226025192,-574.0,0.00010959,2]
[400253726,1767226025213,-165.11072628,0.00011227,2]
[400253727,1767226025235,-300.0,0.00011437,2]
[400253728,1767226025260,-526.57785785,0.00011438,2]
[400253729,1767226025281,-500.0,0.00011438,2]
[400253730,1767226025304,-500.0,0.00011438,2]
[400253731,1767226025327,-500.0,0.00011438,2]
[400253732,1767226025348,-513.98488271,0.00011438,2]
[400253733,1767226025371,-500.0,0.00011438,2]
[400253734,1767226025395,-500.0,0.00011438,2]
[400253735,1767226025417,-500.0,0.00011438,2]
[400253736,1767226025440,-491.14949593,0.00011438,2]
[400253737,1767226025462,-500.0,0.00011438,2]
[400253738,1767226025485,-500.0,0.00011438,2]
[400253739,1767226025510,-162.31125474,0.00011438,2]
[400253740,1767226025533,-282.86310263,0.00011438,2]
[400253741,1767226044112,-200.0,0.00011203,3]
[400253742,1767226044134,-3348.67422285,0.00011324,2]
[400253743,1767226044157,-217.13689737,0.00011438,2]
[400253744,1767226044179,-500.0,0.00011438,2]
[400253745,1767226044206,-500.0,0.00011438,2]
[400253746,1767226044228,-500.0,0.00011438,2]
[400253747,1767226044249,-239.05163013,0.00011439,2]
[400253748,1767226053097,-60.94836987,0.00011439,2]
[400253749,1767226053119,-105.91251684,0.00011439,2]
[400253750,1767226151134,-7895.31858521,0.00011342,2]
[400253751,1767226151157,-365.0,0.00011438,2]
[400253752,1767226151180,-194.08748316,0.00011439,2]
[400253753,1767226151205,-300.0,0.00011439,2]
[400253754,1767226151232,-50000.0,0.00011439,2]
[400253755,1767226159084,-389.43,0.0001214,2]
[400253756,1767226159105,-420.0,0.00012564,2]
[400253757,1767226160095,-177.0,0.00012959,2]
[400253758,1767226160116,-778.85,0.00013243,2]
[400253759,1767226160137,-15490.5579877,0.00013699,2]
[400253760,1767226160157,-726.701501,0.00013699,2]
[400253761,1767226160178,-663.328626,0.00013699,2]
[400253762,1767226160198,-2942.9097946,0.00013699,2]
[400253763,1767226160218,-180.0,0.000138,2]
[400253764,1767226160240,-1168.28,0.00014347,2]
[400253765,1767226160262,-204.0,0.00014959,2]
[400253766,1767226160282,-159.94,0.00016,2]
[400253767,1767226160301,-256.52120034,0.00016427,2]
[400253768,1767226160322,-231.0,0.00016959,2]
[400253769,1767226160342,-256.50970175,0.0001733,2]
[400253770,1767226160361,-208.221113,0.00017479,2]
[400253771,1767226160381,-1041.66666667,0.00018004,2]
[400253772,1767226160401,-258.0,0.00018959,2]
[400253773,1767226160421,-161.7,0.00019141,2]
[400253774,1767226160441,-463.10576097,0.00019178,2]
[400253775,1767226160461,-197.59464957,0.00020001,2]
[400253776,1767226160481,-726.701501,0.00020187,2]
[400253777,1767226160501,-663.328626,0.00020548,2]
[400253778,1767226160535,1557.71,0.0001545,2]
[400253779,1767226160886,1947.13,0.00016554,2]
[400253780,1767226161278,2336.56,0.00017658,2]
[400253781,1767226161680,2725.99,0.00018761,2]
[400253782,1767226162096,3115.41,0.00019865,2]
[400253783,1767226191479,1000.0,0.00020439,2]
[400253784,1767226206152,9515.61318195,0.00011341,2]
[400253785,1767226206181,47244.20446272,0.00011341,2]
[400253809,1767226232522,-261.67978186,0.00016336,2]
[400253811,1767226232532,-358.16933918,0.00018189,2]
[400253815,1767226232555,-112.85426817,0.00018189,2]
[400253817,1767226232564,-550.0,0.0002,2]
[400253818,1767226232574,-94.63153236,0.00020042,2]
[400253821,1767226232592,-484.09899876,0.00020042,2]
[400253823,1767226232604,-258.64477083,0.00020042,2]
[400253825,1767226232614,-161.7,0.00020801,2]
[400253827,1767226232623,-285.0,0.00020959,2]
[400253830,1767226232632,-150.0,0.00021,2]
[400253832,1767226232641,-178.06,0.00021519,2]
[400253834,1767226232651,-850.77,0.00021609,10]
[400253836,1767226232660,-42883.04900447,0.00021618,2]
[400253838,1767226232671,-1660.07122545,0.00021618,2]
[400253921,1767226235469,211.0,0.00012185,2]
[400253942,1767226238785,-422.0,0.00013293,2]
[400253943,1767226238795,-633.0,0.000144,2]
[400253944,1767226238806,-843.99,0.00015508,2]
[400253945,1767226238816,-1054.99,0.00016616,2]
[400253946,1767226238827,-1265.99,0.00017724,2]
[400253947,1767226238836,-1476.99,0.00018831,2]
[400253948,1767226238846,-1687.99,0.00019939,2]
[400253949,1767226238857,-811.76,0.0002149,10]
[400253950,1767226238867,-1153096.86813917,0.000215,2]
[400253961,1767226241097,-1898.99,0.00021047,2]
[400253962,1767226241106,-16570.19,0.000215,2]
[400253976,1767226245403,-388.51668446,0.000215,2]
[400253977,1767226245414,-24128.79754629,0.000215,2]
[400253988,1767226246451,21682.5750268,0.00012298,2]
[400254001,1767226246668,-1041.66666667,0.0002,2]
[400254002,1767226246678,-151.37538074,0.000215,2]
[400254006,1767226311881,150.0,0.00012897,2]
[400254013,1767227227140,-1014.97912603,0.00011113,2]
[400254014,1767227234097,-3985.02087397,0.00011113,2]
[400254015,1767227234118,-200.0,0.00011203,3]
[400254016,1767227234140,-300.0,0.00011224,2]
[400254017,1767227234161,-300.0,0.00011224,2]
[400254018,1767227234183,-1175.23823351,0.00011225,2]
[400254019,1767227236072,-320.72344591,0.00011225,2]
[400254020,1767227242078,-812.879387,0.00011225,2]
[400254021,1767227250139,-4169.43253992,0.00011113,2]
[400254023,1767227302630,288.89571858,0.0001,2]
[400254024,1767227303488,5000.0,0.00010954,2]
[400254025,1767227317013,17033.6576,0.0002739,120]
[400254026,1767227318919,6998.44939984,0.0001,2]
[400254028,1767227322209,8259.20870836,7.3e-05,2]
[400254029,1767227326560,5000.0,0.00010954,2]
[400254030,1767227349832,5000.0,0.00010954,2]
[400254031,1767227358069,-830.56746008,0.00011113,2]
[400254032,1767227358093,-170.08760859,0.00011169,2]
[400254033,1767227358115,-4090.06512898,0.00011225,2]
[400254034,1767227358136,-1200.0,0.00011358,2]
[400254035,1767227358157,-300.0,0.0001163,2]
[400254036,1767227358178,-300.0,0.0001163,2]
[400254037,1767227358199,-300.0,0.0001163,2]
[400254038,1767227358223,-585.0,0.0001175,2]
[400254039,1767227358244,-300.0,0.00012119,2]
[400254040,1767227358268,-500.0,0.0001212,2]
[400254041,1767227358292,-500.0,0.0001212,2]
[400254042,1767227358316,-500.0,0.0001212,2]
[400254043,1767227358339,-500.0,0.0001212,2]
[400254044,1767227358361,-250.0,0.0001212,2]
[400254045,1767227358382,-484.25650225,0.0001212,2]
[400254046,1767227358404,-500.0,0.0001212,2]
[400254047,1767227358426,-500.0,0.0001212,2]
[400254048,1767227358451,-500.0,0.0001212,2]
[400254049,1767227358473,-500.0,0.0001212,2]
[400254050,1767227358494,-500.0,0.0001212,2]
[400254051,1767227358517,-500.0,0.0001212,2]
[400254052,1767227358539,-500.0,0.0001212,2]
[400254053,1767227358562,-500.0,0.0001212,2]
[400254054,1767227358584,-500.0,0.0001212,2]
[400254055,1767227358606,-500.0,0.0001212,2]
[400254056,1767227358628,-500.0,0.0001212,2]
[400254057,1767227358651,-500.0,0.0001212,2]
[400254058,1767227358684,-500.0,0.0001212,2]
[400254059,1767227358707,-500.0,0.0001212,2]
[400254060,1767227358729,-500.0,0.0001212,2]
[400254061,1767227358750,-500.0,0.0001212,2]
[400254062,1767227358775,-500.0,0.0001212,2]
[400254063,1767227358796,-500.0,0.0001212,2]
[400254064,1767227358818,-500.0,0.0001212,2]
[400254065,1767227358839,-500.0,0.0001212,2]
[400254066,1767227358861,-500.0,0.0001212,2]
[400254067,1767227358884,-500.0,0.0001212,2]
[400254068,1767227358907,-500.0,0.0001212,2]
[400254069,1767227359060,-500.0,0.0001212,2]
[400254070,1767227359082,-500.0,0.0001212,2]
[400254071,1767227359104,-500.0,0.0001212,2]
[400254072,1767227359125,-500.0,0.0001212,2]
[400254073,1767227359148,-500.0,0.0001212,2]
[400254074,1767227359169,-500.0,0.0001212,2]
[400254075,1767227359191,-500.0,0.0001212,2]
[400254076,1767227359214,-474.30036004,0.0001212,2]
[400254077,1767227359236,-500.0,0.0001212,2]
[400254078,1767227359262,-500.0,0.0001212,2]
[400254079,1767227359288,-500.0,0.0001212,2]
[400254080,1767227359311,-500.0,0.0001212,2]
[400254081,1767227359333,-500.0,0.0001212,2]
[400254082,1767227359355,-500.0,0.0001212,2]
[400254083,1767227359378,-500.0,0.0001212,2]
[400254084,1767227359400,-500.0,0.0001212,2]
[400254085,1767227359425,-500.0,0.0001212,2]
[400254086,1767227359448,-500.0,0.0001212,2]
[400254087,1767227359470,-500.0,0.0001212,2]
[400254088,1767227359492,-500.0,0.0001212,2]
[400254089,1767227359517,-282.93630604,0.0001212,2]
[400254090,1767227359541,-500.0,0.0001212,2]
[400254091,1767227359563,-500.0,0.0001212,2]
[400254092,1767227359586,-500.0,0.0001212,2]
[400254093,1767227359608,-257.96418562,0.0001212,2]
[400254094,1767227359631,-500.0,0.0001212,2]
[400254095,1767227359655,-500.0,0.0001212,2]
[400254096,1767227359677,-500.0,0.0001212,2]
[400254097,1767227359700,-500.0,0.0001212,2]
[400254098,1767227359721,-500.0,0.0001212,2]
[400254099,1767227359744,-500.0,0.0001212,2]
[400254100,1767227359766,-500.0,0.0001212,2]
[400254101,1767227359787,-500.0,0.0001212,2]
[400254102,1767227359810,-229.62571905,0.0001212,2]
[400254103,1767227359833,-500.0,0.0001212,2]
[400254104,1767227359856,-500.0,0.0001212,2]
[400254105,1767227359879,-500.0,0.0001212,2]
[400254106,1767227359902,-500.0,0.0001212,2]
[400254107,1767227359923,-500.0,0.0001212,2]
[400254108,1767227359944,-500.0,0.0001212,2]
[400254109,1767227359965,-500.0,0.0001212,2]
[400254110,1767227359987,-500.0,0.0001212,2]
[400254111,1767227360008,-500.0,0.0001212,2]
[400254112,1767227360031,-500.0,0.0001212,2]
[400254113,1767227360052,-500.0,0.0001212,2]
[400254114,1767227360074,-500.0,0.0001212,2]
[400254115,1767227360097,-500.0,0.0001212,2]
[400254116,1767227360119,-500.0,0.0001212,2]
[400254117,1767227360144,-500.0,0.0001212,2]
[400254118,1767227360167,-500.0,0.0001212,2]
[400254119,1767227360191,-500.0,0.0001212,2]
[400254120,1767227360217,-400.0,0.0001212,2]
[400254121,1767227360241,-500.0,0.0001212,2]
[400254122,1767227360267,-500.0,0.0001212,2]
[400254123,1767227360291,-500.0,0.0001212,2]
[400254124,1767227360317,-500.0,0.0001212,2]
[400254125,1767227360341,-250.0,0.0001212,2]
[400254126,1767227360366,-500.0,0.0001212,2]
[400254127,1767227360389,-500.0,0.0001212,2]
[400254128,1767227360414,-500.0,0.0001212,2]
[400254129,1767227360437,-500.0,0.0001212,2]
[400254130,1767227360459,-500.0,0.0001212,2]
[400254131,1767227360481,-500.0,0.0001212,2]
[400254132,1767227360504,-500.0,0.0001212,2]
[400254133,1767227360525,-500.0,0.0001212,2]
[400254134,1767227360548,-500.0,0.0001212,2]
[400254135,1767227360570,-500.0,0.0001212,2]
[400254136,1767227360592,-500.0,0.0001212,2]
[400254137,1767227360614,-500.0,0.0001212,2]
[400254138,1767227360636,-500.0,0.0001212,2]
[400254139,1767227360659,-500.0,0.0001212,2]
[400254140,1767227360681,-500.0,0.0001212,2]
[400254141,1767227360704,-343.75296945,0.0001212,2]
[400254213,1767227431760,-112.77545845,0.00011879,2]
[400254214,1767227431771,-778.48675578,0.00011879,2]
[400254215,1767227431789,-618.13832791,0.00011879,2]
[400254217,1767227431799,-451.39396205,0.00011879,2]
[400254219,1767227431810,-3039.20549581,0.00011879,2]
[400254221,1767227431819,-587.0,0.00011879,2]
[400254222,1767227431828,-5000.0,0.00011999,2]
[400254223,1767227431837,-300.0,0.00012021,2]
[400254224,1767227431846,-528.58556583,0.00012022,2]
[400254235,1767227437868,-463.27028221,0.00012022,2]
[400254236,1767227437880,-833.56636614,0.00012022,2]
[400254237,1767227437890,-156.24703055,0.0001212,2]
[400254238,1767227437899,-500.0,0.0001212,2]
[400254239,1767227437913,-500.0,0.0001212,2]
[400254240,1767227437923,-500.0,0.0001212,2]
[400254241,1767227437933,-500.0,0.0001212,2]
[400254242,1767227437943,-500.0,0.0001212,2]
[400254243,1767227437952,-500.0,0.0001212,2]
[400254244,1767227437962,-500.0,0.0001212,2]
[400254245,1767227437972,-500.0,0.0001212,2]
[400254246,1767227437986,-313.88990197,0.0001212,2]
[400254247,1767227437996,-500.0,0.0001212,2]
[400254248,1767227438006,-500.0,0.0001212,2]
[400254249,1767227438015,-500.0,0.0001212,2]
[400254250,1767227438025,-500.0,0.0001212,2]
[400254251,1767227438035,-500.0,0.0001212,2]
[400254252,1767227438045,-500.0,0.0001212,2]
[400254253,1767227438055,-500.0,0.0001212,2]
[400254254,1767227438064,-500.0,0.0001212,2]
[400254255,1767227438074,-500.0,0.0001212,2]
[400254256,1767227438084,-500.0,0.0001212,2]
[400254257,1767227438093,-500.0,0.0001212,2]
[400254258,1767227438102,-500.0,0.0001212,2]
[400254259,1767227438112,-331.38899019,0.0001212,2]
[400254260,1767227438122,-1921.60164938,0.0001212,2]
[400254265,1767227440880,-269.247383,0.0001212,2]
[400254273,1767227445819,-858.20185189,0.00011999,2]
[400254274,1767227445828,-11541.91945811,0.0001212,2]
[400254284,1767228251278,5000.0,0.00010954,2]
[400254285,1767228274132,5000.0,0.00010954,2]
[400254286,1767228297049,5000.0,0.00010954,2]
[400254287,1767228321715,5000.0,0.00010954,2]
[400254288,1767228344633,5000.0,0.00010954,2]
[400254289,1767228351117,-337.44844908,0.0001101,2]
[400254291,1767228368203,5000.0,0.00010954,2]
[400254292,1767228392147,5000.0,0.00010954,2]
[400254293,1767228415048,5000.0,0.00010954,2]
[400254294,1767228438685,5000.0,0.00010954,2]
[400254295,1767228440072,-661.55155092,0.0001101,2]
[400254296,1767228440093,-169.68585641,0.00011276,2]
[400254297,1767228440115,-207.35873939,0.00011542,2]
[400254298,1767228440134,-99.70609027,0.0001176,2]
[400254299,1767228440161,-486.29390973,0.0001176,2]
[400254300,1767228440181,-2242.59364884,0.00011959,2]
[400254301,1767228440201,-228.54230939,0.00011968,2]
[400254302,1767228440220,-300.0,0.00012018,2]
[400254303,1767228440239,-1200.0,0.00012019,2]
[400254304,1767228440259,-182.0,0.00012019,2]
[400254305,1767228440278,-300.0,0.00012019,2]
[400254306,1767228440298,-300.0,0.00012019,2]
[400254307,1767228440319,-246.22714307,0.0001202,2]
[400254308,1767228440338,-4692.06175913,0.0001202,2]
[400254309,1767228565115,-5000.0,0.000119,2]
[400254310,1767228565140,-9943.87317701,0.00011921,2]
[400254346,1767228632037,-337.82025145,0.00011802,2]
[400254348,1767228632048,-4662.17974855,0.00011802,2]
[400254350,1767228632058,-586.0,0.00011802,2]
[400254352,1767228632067,-169.29213929,0.0001191,2]
[400254353,1767228632076,-300.0,0.0001192,2]
[400254354,1767228632085,-35328.52603557,0.00011921,2]
[400254367,1767228637935,-415.36916342,0.0001192,2]
[400254368,1767228637947,-84.63083658,0.0001192,2]
[400254369,1767228637957,-500.0,0.0001192,2]
[400254370,1767228637966,-369.87846977,0.0001192,2]
[400254371,1767228637978,-130.12153023,0.0001192,2]
[400254372,1767228637987,-500.0,0.0001192,2]
[400254373,1767228637997,-378.07178309,0.0001192,2]
[400254374,1767228638013,-121.92821691,0.0001192,2]
[400254375,1767228638022,-500.0,0.0001192,2]
[400254376,1767228638031,-500.0,0.0001192,2]
[400254377,1767228638041,-500.0,0.0001192,2]
[400254378,1767228638051,-450.34390428,0.0001192,2]
[400254379,1767228638061,-163.70695192,0.0001192,2]
[400254380,1767228638070,-500.0,0.0001192,2]
[400254381,1767228638080,-500.0,0.0001192,2]
[400254382,1767228638089,-500.0,0.0001192,2]
[400254383,1767228638099,-500.0,0.0001192,2]
[400254384,1767228638112,-500.0,0.0001192,2]
[400254385,1767228638122,-200.9677444,0.0001192,2]
[400254386,1767228638131,-500.0,0.0001192,2]
[400254387,1767228638142,-500.0,0.0001192,2]
[400254388,1767228638152,-500.0,0.0001192,2]
[400254389,1767228638162,-500.0,0.0001192,2]
[400254390,1767228638171,-500.0,0.0001192,2]
[400254391,1767228638183,-500.0,0.0001192,2]
[400254392,1767228638193,-500.0,0.0001192,2]
[400254393,1767228638203,-500.0,0.0001192,2]
[400254394,1767228638213,-500.0,0.0001192,2]